fUSD/lending_fUSD_20240828
["ID","MTS","AMOUNT","RATE_DAILY","PERIOD"]
[336454630,1724836241735,-5642.02,0.00010999,2]
[336454631,1724836241745,-5642.02,0.00010999,2]
[336454632,1724836241754,-5642.02,0.00010999,2]
[336454633,1724836241764,-5642.02,0.00010999,2]
[336454634,1724836241773,-5642.02,0.00010999,2]
[336454635,1724836241782,-5642.02,0.00010999,2]
[336454636,1724836241792,-5642.02,0.00010999,2]
[336454637,1724836241801,-3047.53747813,0.00010999,2]
[336454648,1724836243286,-195.72844205,0.00010873,2]
[336454649,1724836243296,-286.27392804,0.00010999,2]
[336454650,1724836243307,-488.14074896,0.00010999,2]
[336454651,1724836243318,-1820.06784487,0.00010999,2]
[336454652,1724836243327,-5642.02,0.00010999,2]
[336454653,1724836243336,-5149.50090966,0.00010999,2]
[336454654,1724836243348,-492.52398021,0.00010999,2]
[336454655,1724836243358,-500.0,0.00010999,2]
[336454656,1724836243367,-508.97,0.00010999,2]
[336454657,1724836243376,-744.0,0.00010999,2]
[336454658,1724836243386,-2728.5058482,0.00011,2]
[336454659,1724836243398,-461.72228719,0.00011,2]
[336454660,1724836243410,-1326.30959715,0.00011,2]
[336454661,1724836243421,-143008.61627105,0.00011,2]
[336454662,1724836243432,-26400.76463366,0.00011,2]
[336454663,1724836243443,-305.20127118,0.00011,2]
[336454664,1724836243460,-1122.81021144,0.00011,2]
[336454665,1724836243473,-2396.5336603,0.00011,2]
[336454666,1724836243485,-509978.56515081,0.00011,2]
[336454667,1724836243494,-62938.43484919,0.00011,2]
[336454668,1724836243510,-343.69288208,0.00011,2]
[336454669,1724836243521,-1806.49803386,0.00011,2]
[336454670,1724836243532,-392.29490377,0.00011,2]
[336454671,1724836243543,-700.1734372,0.00011,2]
[336454672,1724836244262,-21220.78577,0.00011,2]
[336454673,1724836244273,-34626.799998,0.00011,2]
[336454674,1724836244285,-2320.0,0.00011,2]
[336454675,1724836244297,-632.45529131,0.00011,2]
[336454676,1724836244308,-463.0746328,0.00011,2]
[336454677,1724836244319,-397.66172814,0.00011,2]
[336454678,1724836244331,-529.60407928,0.00011,2]
[336454679,1724836244342,-261.4769987,0.00011,2]
[336454680,1724836244355,-6443.66564745,0.00011,2]
[336454681,1724836244366,-14265.34945311,0.00011,2]
[336454682,1724836244377,-603.35100613,0.00011,2]
[336454683,1724836244388,-636.87818,0.00011,2]
[336454684,1724836246426,-370.51643875,0.00010097,2]
[336454685,1724836246435,-181.37767429,0.00011,2]
[336454686,1724836246446,-4776.59933758,0.00011,2]
[336454687,1724836246458,-470.61999998,0.00011,2]
[336454688,1724836246469,-344.831931,0.00011,2]
[336454689,1724836246482,-291.09122005,0.00011,2]
[336454690,1724836246494,-281.818872,0.00011,2]
[336454691,1724836246506,-300.0,0.00011,2]
[336454692,1724836246518,-419.49964303,0.00011,2]
[336454693,1724836246529,-3871.59662795,0.00011,2]
[336454694,1724836246540,-264.208,0.00011,2]
[336454695,1724836246557,-5891.39520654,0.00011,2]
[336454696,1724836246568,-389.63124367,0.00011,2]
[336454697,1724836246579,-3358.77699819,0.00011,2]
[336454699,1724836246590,-1000.18527722,0.00011,2]
[336454701,1724836246601,-6379.89000859,0.00011,2]
[336454702,1724836354742,500.0,9.846e-05,2]
[336454703,1724836451295,550.27,8.219e-05,2]
[336454704,1724836825047,378.83,9.905e-05,2]
[336454706,1724836843640,1000.0,9.905e-05,2]
[336454707,1724836944268,545.13,8.219e-05,2]
[336454709,1724837099077,200.04,9.873e-05,2]
[336454710,1724837136750,21278.05531702,9.5e-05,2]
[336454714,1724837154700,23690.66581222,6.94e-05,2]
[336454715,1724837201677,499.93707134,8.412e-05,2]
[336454716,1724837209721,180.62442799,8.412e-05,2]
[336454730,1724837292429,624.96,9.846e-05,2]
[336454731,1724837292839,624.96,9.848e-05,2]
[336454732,1724837293035,624.96,9.851e-05,2]
[336454733,1724837293258,624.96,9.853e-05,2]
[336454734,1724837293460,624.96,9.856e-05,2]
[336454735,1724837293676,624.96,9.859e-05,2]
[336454736,1724837293883,624.96,9.861e-05,2]
[336454737,1724837294086,624.96,9.864e-05,2]
[336454738,1724837294317,624.96,9.866e-05,2]
[336454739,1724837294530,624.96,9.869e-05,2]
[336454740,1724837294941,624.96,9.872e-05,2]
[336454741,1724837295146,624.96,9.874e-05,2]
[336454742,1724837295389,624.96,9.877e-05,2]
[336454743,1724837295684,624.96,9.88e-05,2]
[336454744,1724837295889,624.96,9.882e-05,2]
[336454745,1724837296297,624.96,9.885e-05,2]
[336454746,1724837296525,624.96,9.887e-05,2]
[336454747,1724837296736,624.96,9.89e-05,2]
[336454748,1724837296952,624.96,9.893e-05,2]
[336454749,1724837297188,624.96,9.895e-05,2]
[336454750,1724837304731,-155.0,9.91e-05,2]
[336454752,1724837304761,-57.00591648,9.91e-05,2]
[336454753,1724837356352,200.0,9.863e-05,2]
[336454754,1724837404865,189.41,9.872e-05,2]
[336454758,1724837432289,-2388.81570417,9.943e-05,2]
[336454759,1724837432298,-239.56,9.958e-05,2]
[336454760,1724837432309,-168.24,9.981e-05,2]
[336454761,1724837432318,-242.53687016,9.999e-05,2]
[336454762,1724837432328,-300.0,9.999e-05,2]
[336454763,1724837432337,-155.0,9.999e-05,2]
[336454764,1724837432348,-500.0,9.999e-05,2]
[336454765,1724837432359,-742.1170854,0.0001,2]
[336454766,1724837432371,-1050.0,0.0001,2]
[336454767,1724837432380,-211.18287848,0.0001,2]
[336454768,1724837432390,-1662.73284004,0.0001,2]
[336454769,1724837432399,-880.79319684,0.0001,2]
[336454770,1724837432410,-164.4317177,0.00010009,2]
[336454771,1724837432419,-517.65878543,0.00010009,2]
[336454772,1724837432428,-2453.13573216,0.00010009,2]
[336454773,1724837432439,-8095.98007871,0.00010009,2]
[336454774,1724837432451,-150.0,0.00010096,2]
[336454775,1724837432460,-2216.31651882,0.00010097,2]
[336454776,1724837432469,-178.34,0.00010421,2]
[336454777,1724837432478,-396.29,0.00010421,2]
[336454778,1724837432487,-3765.79,0.00010443,2]
[336454779,1724837432497,-1075.45,0.00010443,2]
[336454780,1724837432506,-2440.49,0.00010443,2]
[336454781,1724837432515,-499.99,0.00010443,2]
[336454782,1724837432524,-15190.0488,0.00010455,2]
[336454783,1724837432533,-3705.59,0.00010455,2]
[336454784,1724837432542,-2354.23,0.00010455,2]
[336454785,1724837432551,-545.13,0.0001047,2]
[336454786,1724837432561,-1868.85597127,0.00010699,2]
[336454787,1724837432570,-2235.71451096,0.00010699,2]
[336454788,1724837432580,-361.77485037,0.00010713,2]
[336454789,1724837432591,-3186.53480063,0.00010713,2]
[336454790,1724837432602,-189.160349,0.00010713,2]
[336454791,1724837432612,-880.1936648,0.00010713,2]
[336454792,1724837432621,-3695.47,0.0001073,2]
[336454793,1724837432631,-1271.8216191,0.00010751,2]
[336454794,1724837432642,-228.1783809,0.00010751,2]
[336454795,1724837432652,-175.8216191,0.00010789,2]
[336454796,1724837432663,-1324.1783809,0.00010789,2]
[336454798,1724837432673,-791.18,0.000108,2]
[336454800,1724837432682,-791.18,0.000108,2]
[336454801,1724837432692,-791.18,0.000108,2]
[336454803,1724837432701,-204.18160294,0.00010824,2]
[336454805,1724837432710,-1500.0,0.00010827,2]
[336454807,1724837432721,-150.0,0.00010831,2]
[336454809,1724837432731,-265.64160913,0.00010852,2]
[336454811,1724837432740,-150.0,0.00010858,2]
[336454812,1724837432750,-1020.978,0.00010861,2]
[336454813,1724837432759,-203.17347254,0.00010861,2]
[336454814,1724837432769,-633.46248602,0.00010861,2]
[336454815,1724837432778,-547.58824289,0.00010862,2]
[336454816,1724837432787,-166.39780491,0.00010862,2]
[336454817,1724837432796,-1500.0,0.00010877,2]
[336454818,1724837432805,-155.0,0.00010888,2]
[336454819,1724837432814,-155.0,0.00010888,2]
[336454820,1724837432823,-309.61730491,0.00010888,2]
[336454821,1724837432833,-458.97117731,0.00010888,2]
[336454822,1724837432842,-204.12947164,0.00010888,2]
[336454823,1724837432851,-155.0,0.00010888,2]
[336454824,1724837432861,-328.86743048,0.0001089,2]
[336454825,1724837432871,-255.71947903,0.00010899,2]
[336454826,1724837432880,-236.78945143,0.00010899,2]
[336454827,1724837432890,-292.74243511,0.00010899,2]
[336454828,1724837432899,-7500.0,0.000109,2]
[336454829,1724837432909,-3259.4517,0.000109,2]
[336454830,1724837432919,-3047.3481,0.000109,2]
[336454831,1724837432928,-421.7,0.000109,2]
[336454832,1724837432937,-421.7,0.000109,2]
[336454833,1724837432946,-843.29,0.000109,2]
[336454834,1724837432955,-421.7,0.000109,2]
[336454835,1724837432965,-421.7,0.000109,2]
[336454836,1724837432975,-5436.56740815,0.000109,2]
[336454837,1724837432985,-161.40044995,0.000109,2]
[336454838,1724837432994,-356.58111042,0.000109,2]
[336454839,1724837433004,-273.0,0.000109,2]
[336454840,1724837433020,-84.00420859,0.000109,2]
[336454841,1724837433046,-621.77146932,0.000109,2]
[336454842,1724837433058,-582.57785601,0.000109,2]
[336454843,1724837433070,-450.25,0.000109,2]
[336454844,1724837433081,-555.249,0.000109,2]
[336454845,1724837433093,-7776.89948567,0.000109,2]
[336454846,1724837433105,-4507.06363913,0.000109,2]
[336454847,1724837433117,-1249.78872132,0.000109,2]
[336454848,1724837433128,-406.46096392,0.000109,2]
[336454849,1724837433139,-11871.72727394,0.000109,2]
[336454850,1724837433149,-569.53330002,0.000109,2]
[336454851,1724837433158,-171.61026492,0.000109,2]
[336454852,1724837433168,-167.7305538,0.000109,2]
[336454853,1724837433177,-500.0,0.00010912,2]
[336454854,1724837433187,-150.0,0.0001094,2]
[336454855,1724837433196,-500.0,0.00010942,2]
[336454856,1724837433206,-800.0,0.00010942,2]
[336454857,1724837433216,-900.0,0.00010942,2]
[336454858,1724837433225,-1500.0,0.00010945,2]
[336454859,1724837433235,-150.781886,0.00010958,2]
[336454860,1724837433244,-153.118875,0.00010958,2]
[336454861,1724837433254,-154.40213,0.00010958,2]
[336454862,1724837433264,-154.40213,0.00010958,2]
[336454863,1724837433274,-154.40213,0.00010958,2]
[336454864,1724837433284,-155.764169,0.00010958,2]
[336454865,1724837433293,-155.764169,0.00010958,2]
[336454866,1724837433303,-155.973087,0.00010958,2]
[336454867,1724837433312,-155.973087,0.00010958,2]
[336454868,1724837433322,-200.0,0.00010959,2]
[336454869,1724837433332,-169.64,0.00010959,2]
[336454870,1724837433341,-163.95,0.00010959,2]
[336454871,1724837433351,-200.0,0.00010973,2]
[336454872,1724837433363,-500.0,0.00010973,2]
[336454873,1724837433375,-167.748,0.00010982,2]
[336454874,1724837433385,-523.67279708,0.00010989,2]
[336454875,1724837433394,-339.08886906,0.0001099,2]
[336454876,1724837433407,-2809.2987252,0.0001099,2]
[336454877,1724837433419,-1184.24886143,0.0001099,2]
[336454878,1724837433431,-317.36354431,0.0001099,2]
[336454879,1724837433442,-51.40689309,0.00010994,2]
[336454880,1724837433454,-98.80455514,0.00010994,2]
[336454881,1724837433463,-2601.19544486,0.00010995,2]
[336454882,1724837433475,-845.87545876,0.00010995,2]
[336454883,1724837433487,-1028.79,0.00010995,2]
[336454884,1724837433499,-1559.20212666,0.00010995,2]
[336454885,1724837433511,-6340.50223222,0.00010995,2]
[336454886,1724837433522,-1108.8661895,0.00010995,2]
[336454887,1724837433531,-2472.26735235,0.00010995,2]
[336454888,1724837433544,-752.17210597,0.00010995,2]
[336454889,1724837433556,-8187.43401926,0.00010995,2]
[336454890,1724837433572,-383.2366832,0.00010995,2]
[336454891,1724837433583,-297.83454809,0.00010995,2]
[336454896,1724837438365,-888.66764494,0.00010566,2]
[336454897,1724837438379,-358.14086593,0.00010862,2]
[336454899,1724837438388,-191.56864968,0.0001089,2]
[336454900,1724837438398,-24356.09852924,0.00010995,2]
[336454901,1724837438479,-6394.94183164,0.00010995,2]
[336454902,1724837438567,-58964.23578845,0.00010995,2]
[336454903,1724837438577,-162.39023677,0.00010997,2]
[336454904,1724837438587,-154.40213,0.00010997,2]
[336454905,1724837438596,-154.40213,0.00010997,2]
[336454906,1724837438606,-155.764169,0.00010997,2]
[336454907,1724837438617,-155.973087,0.00010997,2]
[336454908,1724837438627,-649.56094708,0.00010997,2]
[336454909,1724837438637,-153.118875,0.00010998,2]
[336454910,1724837438647,-154.40213,0.00010998,2]
[336454911,1724837438656,-154.40213,0.00010998,2]
[336454912,1724837438665,-154.40213,0.00010998,2]
[336454913,1724837438675,-154.40213,0.00010998,2]
[336454914,1724837438685,-155.764169,0.00010998,2]
[336454915,1724837438694,-154.40213,0.00010998,2]
[336454916,1724837438704,-155.764169,0.00010998,2]
[336454917,1724837438714,-154.40213,0.00010998,2]
[336454918,1724837438723,-155.764169,0.00010998,2]
[336454919,1724837438732,-154.40213,0.00010998,2]
[336454920,1724837438742,-154.40213,0.00010998,2]
[336454922,1724837438753,-155.764169,0.00010998,2]
[336454924,1724837438763,-154.40213,0.00010998,2]
[336454925,1724837438773,-155.764169,0.00010998,2]
[336454926,1724837438783,-154.40213,0.00010998,2]
[336454927,1724837438792,-155.764169,0.00010998,2]
[336454928,1724837438802,-154.40213,0.00010998,2]
[336454929,1724837438812,-155.764169,0.00010998,2]
[336454930,1724837438822,-154.40213,0.00010998,2]
[336454931,1724837438831,-155.764169,0.00010998,2]
[336454932,1724837438841,-154.40213,0.00010998,2]
[336454933,1724837438853,-154.40213,0.00010998,2]
[336454934,1724837438868,-154.40213,0.00010998,2]
[336454935,1724837438880,-155.973087,0.00010998,2]
[336454936,1724837438891,-155.973087,0.00010998,2]
[336454937,1724837438902,-155.973087,0.00010998,2]
[336454938,1724837438913,-155.973087,0.00010998,2]
[336454939,1724837438924,-155.973087,0.00010998,2]
[336454940,1724837438934,-155.973087,0.00010998,2]
[336454941,1724837438946,-155.973087,0.00010998,2]
[336454942,1724837438957,-155.973087,0.00010998,2]
[336454943,1724837438967,-155.973087,0.00010998,2]
[336454944,1724837438977,-296.28,0.00010998,2]
[336454945,1724837438987,-500.0,0.00010998,2]
[336454946,1724837438997,-500.0,0.00010998,2]
[336454947,1724837439006,-500.0,0.00010998,2]
[336454948,1724837439016,-357.11744926,0.00010999,2]
[336454949,1724837439026,-500.0,0.00010999,2]
[336454950,1724837439036,-500.0,0.00010999,2]
[336454951,1724837439046,-343.03703186,0.00010999,2]
[336454952,1724837439056,-500.0,0.00010999,2]
[336454953,1724837439066,-537.3,0.00010999,2]
[336454954,1724837439076,-500.0,0.00010999,2]
[336454955,1724837439086,-298.38828726,0.00010999,2]
[336454956,1724837439096,-420.0,0.00010999,2]
[336454957,1724837439106,-500.0,0.00010999,2]
[336454958,1724837439119,-500.0,0.00010999,2]
[336454959,1724837439130,-500.0,0.00010999,2]
[336454960,1724837439141,-258.43259293,0.00010999,2]
[336454961,1724837439152,-336.44,0.00010999,2]
[336454962,1724837439163,-500.0,0.00010999,2]
[336454963,1724837439174,-500.0,0.00010999,2]
[336454964,1724837439185,-589.20451504,0.00010999,2]
[336454965,1724837439195,-671.0,0.00011,2]
[336454966,1724837439206,-648433.76861336,0.00011,2]
[336454967,1724837439216,-203804.69842003,0.00011,2]
[336454968,1724837439235,-292.46071786,0.00011,2]
[336454969,1724837439247,-4159.97519846,0.00011,2]
[336454970,1724837439259,-97251.3708936,0.00011,2]
[336454971,1724837440443,-2474.60167803,0.00011,2]
[336454972,1724837440458,-5041.24050931,0.00011,2]
[336454973,1724837440565,-52110.85762461,0.00011,2]
[336454974,1724837440576,-4582.46085546,0.00011,2]
[336454975,1724837440588,-69773.71844678,0.00011,2]
[336454976,1724837440683,-288.27344624,0.00010999,2]
[336454977,1724837440744,-211.72655376,0.00010999,2]
[336454978,1724837440754,-242.20269553,0.00011,2]
[336454980,1724837440861,-615.61579363,0.00011,2]
[336455066,1724837443378,-278.27597218,0.00010999,2]
[336455067,1724837443388,-345.65414964,0.00011,2]
[336455068,1724837443557,-2307434.35964531,0.00011,2]
[336455069,1724837443568,-485.305,0.00011,2]
[336455070,1724837443579,-473.25526323,0.00011,2]
[336455072,1724837444492,-38453.041751,0.00011,2]
[336455073,1724837444503,-12732.91714098,0.00011,2]
[336455074,1724837444514,-33717.400356,0.00011,2]
[336455075,1724837444529,-16890.90505468,0.00011,2]
[336455076,1724837444540,-8798.02859357,0.00011,2]
[336455077,1724837444555,-566.35561271,0.00011,2]
[336455083,1724837446358,-563.39807013,0.00010999,2]
[336455084,1724837446372,-5385.31301849,0.00011,2]
[336455085,1724837446388,-2470.79766762,0.00011,2]
[336455086,1724837446400,-263.86078829,0.00011,2]
[336455087,1724837446450,-949.65,0.00011,2]
[336455088,1724837446462,-2066.50353201,0.00011,2]
[336455089,1724837446474,-314.2299998,0.00011,2]
[336455090,1724837446486,-612.34305062,0.00011,2]
[336455091,1724837446497,-8499.85506002,0.00011,2]
[336455092,1724837446509,-16288.40638518,0.00011,2]
[336455093,1724837446531,-565.134902,0.00011,2]
[336455094,1724837446543,-432.05724792,0.00011,2]
[336455095,1724837446556,-686.20740112,0.00011,2]
[336455096,1724837446570,-1845.35,0.00011,2]
[336455097,1724837446591,-6226.42723261,0.00011,2]
[336455101,1724837489415,537.89,8.524e-05,2]
[336455102,1724837865114,840.0,9.828e-05,2]
[336455103,1724837899711,1298.45974265,9.909e-05,2]
[336455104,1724837938536,189.41,9.806e-05,2]
[336455105,1724838008586,533.43,8.219e-05,2]
[336455106,1724838035883,168.24,9.805e-05,2]
[336455107,1724838059265,203.17347254,9.899e-05,2]
[336455108,1724838088497,312.08,9.814e-05,2]
[336455109,1724838187529,740.55637078,9.899e-05,2]
[336455110,1724838196255,500.0,9.846e-05,2]
[336455111,1724838202358,740.55637078,9.899e-05,2]
[336455112,1724838265149,500.0,9.846e-05,2]
[336455113,1724838307374,949.8028791,9.909e-05,2]
[336455115,1724838362106,500.0,9.846e-05,2]
[336455116,1724838363028,500.0,9.846e-05,2]
[336455125,1724838506401,500.0,8.75e-05,2]
[336455126,1724838508526,531.54,8.219e-05,2]
[336455127,1724838525740,500.0,9.846e-05,2]
[336455134,1724838631542,-328.0,9.946e-05,2]
[336455135,1724838631552,-219.8,0.0001,2]
[336455136,1724838631561,-155.2666432,0.0001,2]
[336455137,1724838631571,-75.56720375,0.0001,2]
[336455138,1724838631583,-132.62324684,0.0001,2]
[336455139,1724838631592,-550.49626077,0.00010009,2]
[336455140,1724838631602,-140.270021,0.00010096,2]
[336455141,1724838631613,-159.729979,0.00010096,2]
[336455142,1724838631623,-1731.86004709,0.00010097,2]
[336455143,1724838631778,-2604.07207285,0.00010097,2]
[336455144,1724838631790,-1161.35257624,0.00010097,2]
[336455160,1724838637682,-995.36520928,0.00010097,2]
[336455161,1724838637694,-1028.52477935,0.00010097,2]
[336455162,1724838637706,-666.77284336,0.00010097,2]
[336455163,1724838637717,-2375.86334248,0.00010097,2]
[336455164,1724838637729,-500.0,0.000101,3]
[336455165,1724838637739,-500.0,0.0001012,2]
[336455166,1724838637748,-1000.0,0.000102,3]
[336455167,1724838637757,-421.7,0.000102,2]
[336455168,1724838637767,-421.7,0.000102,2]
[336455169,1724838637778,-150.0,0.00010274,2]
[336455170,1724838637788,-791.18,0.000103,2]
[336455171,1724838637799,-1500.0,0.000103,3]
[336455172,1724838637810,-2000.0,0.000104,3]
[336455173,1724838637819,-531.54,0.00010468,2]
[336455174,1724838637829,-1362.32637217,0.00010471,2]
[336455175,1724838637872,-226.36585916,0.00010471,2]
[336455176,1724838637881,-33.99456263,0.000105,3]
[336455177,1724838637892,-831.31200603,0.000105,3]
[336455178,1724838637995,-1634.69343134,0.000105,3]
[336455179,1724838638004,-500.0,0.000106,3]
[336455180,1724838638014,-5409.69686454,0.00010699,2]
[336455181,1724838638023,-1740.58702066,0.00010699,2]
[336455182,1724838638032,-1074.88726643,0.00010699,2]
[336455183,1724838638041,-500.0,0.000107,3]
[336455184,1724838638052,-3743.41,0.00010762,2]
[336455185,1724838638062,-500.0,0.000108,3]
[336455186,1724838638071,-265.64160913,0.00010861,2]
[336455187,1724838638080,-547.58824289,0.00010861,2]
[336455188,1724838638089,-523.5801868,0.00010861,2]
[336455189,1724838638098,-633.46248602,0.00010862,2]
[336455190,1724838638108,-286.12019281,0.00010862,2]
[336455191,1724838638118,-600.79792946,0.00010862,2]
[336455192,1724838638127,-155.0,0.00010862,2]
[336455193,1724838638136,-486.69204771,0.00010888,2]
[336455194,1724838638145,-313.30908928,0.00010888,2]
[336455195,1724838638154,-963.71264311,0.00010888,2]
[336455196,1724838638163,-311.61484676,0.00010888,2]
[336455197,1724838638172,-155.38649312,0.00010888,2]
[336455198,1724838638181,-155.0,0.00010888,2]
[336455199,1724838638191,-202.95636554,0.0001089,2]
[336455201,1724838638200,-504.06387671,0.0001089,2]
[336455203,1724838638211,-150.0,0.00010898,2]
[336455205,1724838638221,-5277.53835378,0.00010899,2]
[336455206,1724838638230,-277.65943501,0.00010899,2]
[336455208,1724838638240,-277.659435,0.00010899,2]
[336455210,1724838638249,-277.659435,0.00010899,2]
[336455212,1724838638259,-277.659435,0.00010899,2]
[336455214,1724838638268,-277.659435,0.00010899,2]
[336455216,1724838638277,-277.659435,0.00010899,2]
[336455217,1724838638287,-277.659435,0.00010899,2]
[336455219,1724838638297,-277.659435,0.00010899,2]
[336455220,1724838638307,-1258.20462876,0.00010899,2]
[336455221,1724838638317,-277.659435,0.00010899,2]
[336455222,1724838638327,-3236.6523,0.000109,2]
[336455223,1724838638336,-1471.267,0.000109,2]
[336455224,1724838638346,-34028.4584,0.000109,2]
[336455225,1724838638355,-883.7079,0.000109,2]
[336455226,1724838638365,-7500.0,0.000109,2]
[336455227,1724838638375,-9681.3135517,0.000109,2]
[336455228,1724838638385,-500.0,0.000109,3]
[336455229,1724838638394,-277.659435,0.000109,2]
[336455230,1724838638403,-549.0,0.00010904,2]
[336455231,1724838638413,-500.0,0.00010912,2]
[336455232,1724838638422,-1000.0,0.00010942,2]
[336455233,1724838638432,-1000.0,0.00010942,2]
[336455234,1724838638441,-155.0,0.00010949,2]
[336455235,1724838638451,-155.0,0.00010949,2]
[336455236,1724838638460,-1657.7173403,0.00010949,2]
[336455237,1724838638469,-385.82986918,0.00010949,2]
[336455238,1724838638478,-170.72,0.00010959,2]
[336455239,1724838638487,-203.62,0.00010959,2]
[336455240,1724838638497,-154.71,0.00010959,2]
[336455241,1724838638506,-773.6,0.00010959,2]
[336455242,1724838638515,-160.98126634,0.00010973,2]
[336455243,1724838638525,-151.01934258,0.00010973,2]
[336455244,1724838638534,-170.01974569,0.00010973,2]
[336455245,1724838638544,-500.0,0.00010973,2]
[336455246,1724838638554,-500.0,0.00010974,2]
[336455247,1724838638563,-500.0,0.00010982,2]
[336455248,1724838638573,-150.86,0.0001099,2]
[336455249,1724838638582,-500.0,0.00010991,2]
[336455250,1724838638592,-16838.62423499,0.00010993,2]
[336455251,1724838638601,-248.9599496,0.00010994,2]
[336455252,1724838638610,-500.0,0.00010994,2]
[336455253,1724838638620,-543.54003718,0.00010994,2]
[336455254,1724838638629,-500.0,0.00010994,2]
[336455255,1724838638638,-262.44054549,0.00010994,2]
[336455256,1724838638648,-500.0,0.00010994,2]
[336455257,1724838638657,-504.81776242,0.00010994,2]
[336455258,1724838638667,-500.0,0.00010994,2]
[336455259,1724838638676,-500.0,0.00010994,2]
[336455260,1724838638685,-500.0,0.00010994,2]
[336455261,1724838638695,-500.0,0.00010994,2]
[336455262,1724838638704,-3320.6312514,0.00010994,2]
[336455263,1724838638713,-797.97947097,0.00010994,2]
[336455264,1724838638724,-34392.6568203,0.00010994,2]
[336455265,1724838638736,-4179.2470565,0.00010994,2]
[336455266,1724838638746,-374.4657848,0.00010994,2]
[336455267,1724838638755,-165.893,0.00010999,2]
[336455268,1724838638766,-2264.16874572,0.00010999,2]
[336455269,1724838638775,-619.91878598,0.00010999,2]
[336455270,1724838638784,-500.0,0.00010999,2]
[336455271,1724838638793,-500.0,0.00010999,2]
[336455272,1724838638803,-500.0,0.00010999,2]
[336455273,1724838638815,-500.0,0.00010999,2]
[336455274,1724838638825,-492.19122263,0.00010999,2]
[336455275,1724838638834,-500.0,0.00010999,2]
[336455276,1724838638843,-500.0,0.00010999,2]
[336455277,1724838638853,-500.0,0.00010999,2]
[336455278,1724838638862,-500.0,0.00010999,2]
[336455279,1724838638872,-500.0,0.00010999,2]
[336455280,1724838638882,-500.0,0.00010999,2]
[336455281,1724838638891,-153.18161695,0.00010999,2]
[336455282,1724838638901,-500.0,0.00010999,2]
[336455283,1724838638911,-500.0,0.00010999,2]
[336455284,1724838638920,-500.0,0.00010999,2]
[336455285,1724838638930,-528.34269695,0.00010999,2]
[336455286,1724838638940,-500.0,0.00010999,2]
[336455287,1724838638949,-500.0,0.00010999,2]
[336455288,1724838638958,-508.61218446,0.00010999,2]
[336455289,1724838638968,-500.0,0.00010999,2]
[336455290,1724838638976,-486.66012195,0.00010999,2]
[336455291,1724838638986,-500.0,0.00010999,2]
[336455292,1724838638996,-614.95,0.00010999,2]
[336455293,1724838639005,-500.0,0.00010999,2]
[336455294,1724838639015,-500.0,0.00010999,2]
[336455295,1724838639024,-500.0,0.00010999,2]
[336455296,1724838639034,-500.0,0.00010999,2]
[336455297,1724838639044,-500.0,0.00010999,2]
[336455298,1724838639053,-231.83713972,0.00010999,2]
[336455299,1724838639063,-500.0,0.00010999,2]
[336455300,1724838639073,-500.0,0.00010999,2]
[336455301,1724838639082,-500.0,0.00010999,2]
[336455302,1724838639092,-500.0,0.00010999,2]
[336455303,1724838639102,-291.94,0.00010999,2]
[336455304,1724838639112,-500.0,0.00010999,2]
[336455305,1724838639121,-500.0,0.00010999,2]
[336455306,1724838639131,-500.0,0.00010999,2]
[336455307,1724838639140,-500.0,0.00010999,2]
[336455308,1724838639150,-500.0,0.00010999,2]
[336455309,1724838639159,-196.03,0.00010999,2]
[336455310,1724838639168,-452.04,0.00010999,2]
[336455311,1724838639178,-230.28,0.00010999,2]